[Event "Titled Tuesday Blitz February 28 Late 2023"]
[White "Carlsen, Magnus"]
[Black "Duda, Jan-Krzysztof"]
[WhiteFideId "1503014"]
[BlackFideId "1170546"]
[WhiteElo "2852"]
[BlackElo "2790"]
[Result "1-0"]
[Round "10"]
[TimeControl "180+2"]
[Date "2023.02.28"]
[WhiteClock "0:00:08"]
[BlackClock "0:00:01"]

1. d4 {[%clk 0:02:57]}  Nf6 {[%clk 0:02:58]} 2. Nf3 {[%clk 0:02:57]}  g6 {[%clk 0:02:57]} 3. c4 {[%clk 0:02:53]}  Bg7 {[%clk 0:02:57]} 4. Nc3 {[%clk 0:02:54]}  d5 {[%clk 0:02:58]} 5. cxd5 {[%clk 0:02:51]}  Nxd5 {[%clk 0:02:59]} 6. e4 {[%clk 0:02:50]}  Nxc3 {[%clk 0:02:59]} 7. bxc3 {[%clk 0:02:51]}  c5 {[%clk 0:02:58]} 8. Be3 {[%clk 0:02:43]}  Qa5 {[%clk 0:02:54]} 9. Qd2 {[%clk 0:02:36]}  O-O {[%clk 0:02:44]} 10. Rc1 {[%clk 0:02:35]}  cxd4 {[%clk 0:02:43]} 11. cxd4 {[%clk 0:02:35]}  Qxd2+ {[%clk 0:02:44]} 12. Bxd2 {[%clk 0:02:32]}  e6 {[%clk 0:02:33]} 13. h4 {[%clk 0:02:32]}  Nc6 {[%clk 0:02:14]} 14. e5 {[%clk 0:02:30]}  Rd8 {[%clk 0:02:12]} 15. Bg5 {[%clk 0:02:26]}  Rd7 {[%clk 0:01:55]} 16. Bb5 {[%clk 0:02:20]}  h6 {[%clk 0:01:52]} 17. Be3 {[%clk 0:02:19]}  Rd5 {[%clk 0:01:49]} 18. Bc4 {[%clk 0:02:07]}  Rd8 {[%clk 0:01:48]} 19. O-O {[%clk 0:01:32]}  b6 {[%clk 0:01:36]} 20. Bd3 {[%clk 0:00:57]}  Nb4 {[%clk 0:01:24]} 21. Be4 {[%clk 0:00:56]}  Nd5 {[%clk 0:01:25]} 22. Rc2 {[%clk 0:00:48]}  Ba6 {[%clk 0:01:22]} 23. Rfc1 {[%clk 0:00:48]}  Rac8 {[%clk 0:01:22]} 24. Bd2 {[%clk 0:00:46]}  Bf8 {[%clk 0:01:18]} 25. Ne1 {[%clk 0:00:34]}  Nb4 {[%clk 0:00:45]} 26. Rxc8 {[%clk 0:00:24]}  Rxc8 {[%clk 0:00:46]} 27. Rxc8 {[%clk 0:00:24]}  Bxc8 {[%clk 0:00:46]} 28. a3 {[%clk 0:00:22]}  Nd5 {[%clk 0:00:45]} 29. Nc2 {[%clk 0:00:23]}  a5 {[%clk 0:00:42]} 30. Kf1 {[%clk 0:00:19]}  Ba6+ {[%clk 0:00:40]} 31. Ke1 {[%clk 0:00:19]}  Bb5 {[%clk 0:00:36]} 32. Bc1 {[%clk 0:00:20]}  Kg7 {[%clk 0:00:35]} 33. Ne3 {[%clk 0:00:19]}  Nxe3 {[%clk 0:00:20]} 34. fxe3 {[%clk 0:00:19]}  Be7 {[%clk 0:00:20]} 35. g3 {[%clk 0:00:19]}  h5 {[%clk 0:00:13]} 36. Bc2 {[%clk 0:00:19]}  g5 {[%clk 0:00:10]} 37. hxg5 {[%clk 0:00:18]}  Bxg5 {[%clk 0:00:11]} 38. Kf2 {[%clk 0:00:18]}  Bc4 {[%clk 0:00:08]} 39. Bd2 {[%clk 0:00:17]}  Kh6 {[%clk 0:00:06]} 40. Ke1 {[%clk 0:00:16]}  Kg7 {[%clk 0:00:03]} 41. e4 {[%clk 0:00:15]}  Kh6 {[%clk 0:00:04]} 42. Bd1 {[%clk 0:00:14]}  Bd3 {[%clk 0:00:02]} 43. Bf3 {[%clk 0:00:13]}  a4 {[%clk 0:00:02]} 44. d5 {[%clk 0:00:13]}  Bb5 {[%clk 0:00:02]} 45. d6 {[%clk 0:00:10]}  Kg6 {[%clk 0:00:02]} 46. Bxg5 {[%clk 0:00:10]}  Kxg5 {[%clk 0:00:03]} 47. Kd2 {[%clk 0:00:11]}  h4 {[%clk 0:00:03]} 48. gxh4+ {[%clk 0:00:12]}  Kf4 {[%clk 0:00:03]} 49. h5 {[%clk 0:00:12]}  Kxe5 {[%clk 0:00:03]} 50. h6 {[%clk 0:00:12]}  Kf6 {[%clk 0:00:04]} 51. Bh5 {[%clk 0:00:13]}  e5 {[%clk 0:00:03]} 52. Kc3 {[%clk 0:00:13]}  Bc6 {[%clk 0:00:04]} 53. Bg4 {[%clk 0:00:10]}  Bxe4 {[%clk 0:00:03]} 54. Kc4 {[%clk 0:00:09]}  Bc6 {[%clk 0:00:01]} 55. Bf5 {[%clk 0:00:08]} 1-0


[Site "https://www.chess.com"]

[Event "Titled Tuesday Blitz February 28 Late 2023"]
[White "Paravyan, David"]
[Black "Firouzja, Alireza"]
[WhiteFideId "4194985"]
[BlackFideId "12573981"]
[WhiteElo "2577"]
[BlackElo "2904"]
[Result "0-1"]
[Round "10"]
[TimeControl "180+2"]
[Date "2023.02.28"]
[WhiteClock "0:00:03"]
[BlackClock "0:00:06"]

1. Nf3 {[%clk 0:03:00]}  Nf6 {[%clk 0:03:00]} 2. c4 {[%clk 0:03:00]}  g6 {[%clk 0:02:57]} 3. d4 {[%clk 0:02:58]}  Bg7 {[%clk 0:02:57]} 4. g3 {[%clk 0:02:59]}  O-O {[%clk 0:02:57]} 5. Bg2 {[%clk 0:02:59]}  d6 {[%clk 0:02:58]} 6. O-O {[%clk 0:02:59]}  Ne4 {[%clk 0:02:58]} 7. Qc2 {[%clk 0:02:55]}  f5 {[%clk 0:02:58]} 8. Nbd2 {[%clk 0:02:55]}  Nxd2 {[%clk 0:02:57]} 9. Bxd2 {[%clk 0:02:56]}  e5 {[%clk 0:02:56]} 10. dxe5 {[%clk 0:02:55]}  dxe5 {[%clk 0:02:57]} 11. Bb4 {[%clk 0:02:56]}  Re8 {[%clk 0:02:53]} 12. Rad1 {[%clk 0:02:53]}  Qf6 {[%clk 0:02:53]} 13. Bc3 {[%clk 0:02:45]}  Qe7 {[%clk 0:02:39]} 14. h4 {[%clk 0:02:36]}  Nc6 {[%clk 0:02:36]} 15. b3 {[%clk 0:01:21]}  h6 {[%clk 0:02:29]} 16. Qb2 {[%clk 0:01:17]}  e4 {[%clk 0:02:04]} 17. Nd4 {[%clk 0:01:16]}  Ne5 {[%clk 0:01:57]} 18. f3 {[%clk 0:01:00]}  c6 {[%clk 0:01:27]} 19. Qc1 {[%clk 0:00:29]}  exf3 {[%clk 0:01:19]} 20. exf3 {[%clk 0:00:29]}  Bd7 {[%clk 0:01:20]} 21. Rfe1 {[%clk 0:00:28]}  Qc5 {[%clk 0:01:18]} 22. Kh2 {[%clk 0:00:26]}  Rad8 {[%clk 0:01:14]} 23. Re2 {[%clk 0:00:23]}  Bc8 {[%clk 0:01:12]} 24. Qb2 {[%clk 0:00:15]}  Rd7 {[%clk 0:01:01]} 25. Rde1 {[%clk 0:00:11]}  Rde7 {[%clk 0:00:59]} 26. Qc2 {[%clk 0:00:09]}  h5 {[%clk 0:00:51]} 27. Kh1 {[%clk 0:00:07]}  a5 {[%clk 0:00:48]} 28. Qd2 {[%clk 0:00:06]}  Nf7 {[%clk 0:00:32]} 29. Rxe7 {[%clk 0:00:04]}  Rxe7 {[%clk 0:00:33]} 30. Rxe7 {[%clk 0:00:04]}  Qxe7 {[%clk 0:00:34]} 31. Ne2 {[%clk 0:00:05]}  Bxc3 {[%clk 0:00:33]} 32. Nxc3 {[%clk 0:00:06]}  f4 {[%clk 0:00:33]} 33. gxf4 {[%clk 0:00:02]}  Qxh4+ {[%clk 0:00:33]} 34. Kg1 {[%clk 0:00:03]}  Qd8 {[%clk 0:00:27]} 35. Qe3 {[%clk 0:00:02]}  Bf5 {[%clk 0:00:25]} 36. Ne4 {[%clk 0:00:02]}  Qd1+ {[%clk 0:00:20]} 37. Kh2 {[%clk 0:00:02]}  Bxe4 {[%clk 0:00:19]} 38. fxe4 {[%clk 0:00:03]}  Nh6 {[%clk 0:00:19]} 39. Bh3 {[%clk 0:00:04]}  Qc2+ {[%clk 0:00:18]} 40. Kg3 {[%clk 0:00:04]}  Qxa2 {[%clk 0:00:11]} 41. Be6+ {[%clk 0:00:03]}  Kh7 {[%clk 0:00:11]} 42. f5 {[%clk 0:00:03]}  Qb2 {[%clk 0:00:05]} 43. fxg6+ {[%clk 0:00:02]}  Kxg6 {[%clk 0:00:06]} 44. Kh3 {[%clk 0:00:01]}  Qe5 {[%clk 0:00:06]} 45. Bc8 {[%clk 0:00:01]}  b5 {[%clk 0:00:05]} 46. cxb5 {[%clk 0:00:02]}  cxb5 {[%clk 0:00:06]} 47. Qb6+ {[%clk 0:00:01]}  Kg7 {[%clk 0:00:06]} 48. Qa7+ {[%clk 0:00:01]}  Nf7 {[%clk 0:00:06]} 49. Bf5 {[%clk 0:00:01]}  Qc3+ {[%clk 0:00:06]} 50. Kh4 {[%clk 0:00:01]}  Qf6+ {[%clk 0:00:06]} 51. Kh3 {[%clk 0:00:01]}  Qc3+ {[%clk 0:00:04]} 52. Kh4 {[%clk 0:00:02]}  Qxb3 {[%clk 0:00:05]} 53. Qd4+ {[%clk 0:00:01]}  Kg8 {[%clk 0:00:05]} 54. Bg6 {[%clk 0:00:01]}  Qe6 {[%clk 0:00:05]} 55. Bxh5 {[%clk 0:00:01]}  Qe7+ {[%clk 0:00:05]} 56. Kh3 {[%clk 0:00:02]}  Qe6+ {[%clk 0:00:04]} 57. Kh4 {[%clk 0:00:02]}  Qe7+ {[%clk 0:00:04]} 58. Kh3 {[%clk 0:00:02]}  Ng5+ {[%clk 0:00:04]} 59. Kh2 {[%clk 0:00:01]}  Ne6 {[%clk 0:00:02]} 60. Qd5 {[%clk 0:00:02]}  Kg7 {[%clk 0:00:02]} 61. Bg4 {[%clk 0:00:01]}  Qc7+ {[%clk 0:00:02]} 62. Kg1 {[%clk 0:00:01]}  Qg3+ {[%clk 0:00:03]} 63. Kf1 {[%clk 0:00:02]}  Qxg4 {[%clk 0:00:03]} 64. Qxb5 {[%clk 0:00:02]}  Qf4+ {[%clk 0:00:03]} 65. Kg1 {[%clk 0:00:03]}  Qe3+ {[%clk 0:00:04]} 66. Kh2 {[%clk 0:00:03]}  Qf2+ {[%clk 0:00:04]} 67. Kh1 {[%clk 0:00:03]}  Qf3+ {[%clk 0:00:04]} 68. Kh2 {[%clk 0:00:03]}  Qf4+ {[%clk 0:00:04]} 69. Kh1 {[%clk 0:00:04]}  Qxe4+ {[%clk 0:00:05]} 70. Kh2 {[%clk 0:00:02]}  Qf4+ {[%clk 0:00:05]} 71. Kh1 {[%clk 0:00:03]}  Qh6+ {[%clk 0:00:06]} 0-1


[Site "https://www.chess.com"]

[Event "Titled Tuesday Blitz February 28 Late 2023"]
[White "Pranav, V"]
[Black "Yoo, Christopher Woojin"]
[WhiteFideId "25060783"]
[BlackFideId "30909694"]
[WhiteElo "2500"]
[BlackElo "2519"]
[Result "1-0"]
[Round "10"]
[TimeControl "180+2"]
[Date "2023.02.28"]
[WhiteClock "0:00:11"]
[BlackClock "0:00:02"]

1. e4 {[%clk 0:02:58]}  c5 {[%clk 0:02:59]} 2. Nf3 {[%clk 0:02:58]}  e6 {[%clk 0:03:00]} 3. d4 {[%clk 0:02:58]}  cxd4 {[%clk 0:03:01]} 4. Nxd4 {[%clk 0:02:59]}  Nc6 {[%clk 0:03:01]} 5. Nc3 {[%clk 0:02:59]}  Qc7 {[%clk 0:03:01]} 6. Be2 {[%clk 0:02:59]}  Nf6 {[%clk 0:03:01]} 7. O-O {[%clk 0:02:59]}  Be7 {[%clk 0:03:01]} 8. Be3 {[%clk 0:03:00]}  O-O {[%clk 0:03:02]} 9. f4 {[%clk 0:02:58]}  d6 {[%clk 0:03:02]} 10. Kh1 {[%clk 0:02:56]}  a6 {[%clk 0:03:01]} 11. a4 {[%clk 0:02:56]}  Nxd4 {[%clk 0:02:50]} 12. Qxd4 {[%clk 0:02:55]}  e5 {[%clk 0:02:48]} 13. Qd3 {[%clk 0:02:53]}  exf4 {[%clk 0:02:46]} 14. Bxf4 {[%clk 0:02:48]}  Be6 {[%clk 0:02:47]} 15. Rad1 {[%clk 0:02:45]}  Rfd8 {[%clk 0:02:42]} 16. Qg3 {[%clk 0:02:43]}  Ne8 {[%clk 0:02:28]} 17. Bd3 {[%clk 0:02:40]}  Bf6 {[%clk 0:02:20]} 18. Nd5 {[%clk 0:02:36]}  Bxd5 {[%clk 0:02:19]} 19. exd5 {[%clk 0:02:37]}  g6 {[%clk 0:02:18]} 20. c3 {[%clk 0:02:30]}  Be5 {[%clk 0:01:53]} 21. Qh4 {[%clk 0:02:29]}  Bxf4 {[%clk 0:01:37]} 22. Rxf4 {[%clk 0:02:30]}  Ng7 {[%clk 0:01:25]} 23. Qh6 {[%clk 0:02:25]}  f5 {[%clk 0:01:24]} 24. Rh4 {[%clk 0:02:21]}  Ne8 {[%clk 0:01:23]} 25. g4 {[%clk 0:02:08]}  Qg7 {[%clk 0:00:43]} 26. gxf5 {[%clk 0:01:57]}  Qxh6 {[%clk 0:00:42]} 27. Rxh6 {[%clk 0:01:58]}  Kg7 {[%clk 0:00:43]} 28. Rh4 {[%clk 0:01:56]}  g5 {[%clk 0:00:43]} 29. Rb4 {[%clk 0:01:56]}  Rd7 {[%clk 0:00:40]} 30. Rg1 {[%clk 0:01:56]}  h6 {[%clk 0:00:39]} 31. h4 {[%clk 0:01:55]}  Kf6 {[%clk 0:00:35]} 32. Rb6 {[%clk 0:01:49]}  Re7 {[%clk 0:00:31]} 33. c4 {[%clk 0:01:35]}  Re3 {[%clk 0:00:27]} 34. Bf1 {[%clk 0:01:35]}  Ke5 {[%clk 0:00:18]} 35. Rxb7 {[%clk 0:01:33]}  Kf4 {[%clk 0:00:16]} 36. Rf7 {[%clk 0:00:57]}  Rb8 {[%clk 0:00:12]} 37. Bg2 {[%clk 0:00:46]}  Rxb2 {[%clk 0:00:10]} 38. f6 {[%clk 0:00:47]}  g4 {[%clk 0:00:03]} 39. Rf8 {[%clk 0:00:26]}  Kg3 {[%clk 0:00:02]} 40. f7 {[%clk 0:00:20]}  Nf6 {[%clk 0:00:03]} 41. Rg8 {[%clk 0:00:18]}  Ne4 {[%clk 0:00:02]} 42. Bxe4+ {[%clk 0:00:15]}  Kxh4 {[%clk 0:00:01]} 43. Bg2 {[%clk 0:00:16]}  Rh3+ {[%clk 0:00:01]} 44. Bxh3 {[%clk 0:00:15]}  Kxh3 {[%clk 0:00:02]} 45. Re1 {[%clk 0:00:12]}  Rh2+ {[%clk 0:00:02]} 46. Kg1 {[%clk 0:00:12]}  g3 {[%clk 0:00:02]} 47. Rxg3+ {[%clk 0:00:11]}  Kxg3 {[%clk 0:00:02]} 48. Re3+ {[%clk 0:00:11]} 1-0


[Site "https://www.chess.com"]

[Event "Titled Tuesday Blitz February 28 Late 2023"]
[White "Swiercz, Dariusz"]
[Black "Indjic, Aleksandar"]
[WhiteFideId "1126881"]
[BlackFideId "911925"]
[WhiteElo "2627"]
[BlackElo "2625"]
[Result "0-1"]
[Round "10"]
[TimeControl "180+2"]
[Date "2023.02.28"]
[WhiteClock "0:00:06"]
[BlackClock "0:00:10"]

1. d4 {[%clk 0:03:00]}  Nf6 {[%clk 0:02:59]} 2. Bg5 {[%clk 0:03:01]}  d5 {[%clk 0:02:56]} 3. e3 {[%clk 0:03:01]}  g6 {[%clk 0:02:55]} 4. Bxf6 {[%clk 0:03:00]}  exf6 {[%clk 0:02:56]} 5. c4 {[%clk 0:02:52]}  dxc4 {[%clk 0:02:56]} 6. Bxc4 {[%clk 0:02:53]}  Bd6 {[%clk 0:02:56]} 7. Nc3 {[%clk 0:02:53]}  f5 {[%clk 0:02:56]} 8. Nf3 {[%clk 0:02:49]}  Nd7 {[%clk 0:02:56]} 9. O-O {[%clk 0:02:47]}  Nf6 {[%clk 0:02:56]} 10. Nb5 {[%clk 0:02:45]}  O-O {[%clk 0:02:30]} 11. Nxd6 {[%clk 0:02:42]}  Qxd6 {[%clk 0:02:31]} 12. Rc1 {[%clk 0:02:39]}  c6 {[%clk 0:02:31]} 13. Qb3 {[%clk 0:02:37]}  Kg7 {[%clk 0:02:26]} 14. Ne5 {[%clk 0:02:35]}  Qe7 {[%clk 0:02:26]} 15. Qa3 {[%clk 0:02:27]}  Qxa3 {[%clk 0:02:12]} 16. bxa3 {[%clk 0:02:28]}  Ne4 {[%clk 0:02:11]} 17. Rc2 {[%clk 0:02:25]}  Nd6 {[%clk 0:02:09]} 18. Rfc1 {[%clk 0:02:07]}  f6 {[%clk 0:02:06]} 19. Nd3 {[%clk 0:02:03]}  Re8 {[%clk 0:02:02]} 20. Rb2 {[%clk 0:01:55]}  Re7 {[%clk 0:01:59]} 21. Bb3 {[%clk 0:01:47]}  Bd7 {[%clk 0:01:46]} 22. a4 {[%clk 0:01:35]}  g5 {[%clk 0:01:22]} 23. g3 {[%clk 0:01:35]}  Be8 {[%clk 0:01:05]} 24. a5 {[%clk 0:01:25]}  Ne4 {[%clk 0:00:27]} 25. Nc5 {[%clk 0:01:05]}  Nd6 {[%clk 0:00:27]} 26. Bc2 {[%clk 0:00:49]}  Rc8 {[%clk 0:00:25]} 27. Bb3 {[%clk 0:00:39]}  Bf7 {[%clk 0:00:25]} 28. Rcb1 {[%clk 0:00:35]}  Rcc7 {[%clk 0:00:23]} 29. Kg2 {[%clk 0:00:28]}  h6 {[%clk 0:00:22]} 30. Bxf7 {[%clk 0:00:22]}  Kxf7 {[%clk 0:00:21]} 31. Rb4 {[%clk 0:00:23]}  Kg6 {[%clk 0:00:21]} 32. Kf3 {[%clk 0:00:22]}  Kf7 {[%clk 0:00:20]} 33. h3 {[%clk 0:00:22]}  Kg6 {[%clk 0:00:21]} 34. a3 {[%clk 0:00:23]}  Kf7 {[%clk 0:00:20]} 35. g4 {[%clk 0:00:22]}  Kg6 {[%clk 0:00:21]} 36. gxf5+ {[%clk 0:00:22]}  Kxf5 {[%clk 0:00:21]} 37. Re1 {[%clk 0:00:17]}  Ne4 {[%clk 0:00:20]} 38. Nxe4 {[%clk 0:00:18]}  Rxe4 {[%clk 0:00:21]} 39. Rc1 {[%clk 0:00:18]}  Ree7 {[%clk 0:00:20]} 40. Rbc4 {[%clk 0:00:18]}  Rcd7 {[%clk 0:00:19]} 41. a6 {[%clk 0:00:17]}  bxa6 {[%clk 0:00:19]} 42. Rxc6 {[%clk 0:00:18]}  h5 {[%clk 0:00:20]} 43. R1c5+ {[%clk 0:00:17]}  Kg6 {[%clk 0:00:20]} 44. Rxa6 {[%clk 0:00:18]}  Rc7 {[%clk 0:00:20]} 45. Rcc6 {[%clk 0:00:16]}  Rxc6 {[%clk 0:00:20]} 46. Rxc6 {[%clk 0:00:16]}  Rd7 {[%clk 0:00:19]} 47. Ra6 {[%clk 0:00:17]}  Kf5 {[%clk 0:00:19]} 48. Ra5+ {[%clk 0:00:17]}  Kg6 {[%clk 0:00:19]} 49. Kg3 {[%clk 0:00:18]}  Re7 {[%clk 0:00:18]} 50. h4 {[%clk 0:00:18]}  Re4 {[%clk 0:00:18]} 51. hxg5 {[%clk 0:00:18]}  fxg5 {[%clk 0:00:19]} 52. Ra6+ {[%clk 0:00:17]}  Kf5 {[%clk 0:00:18]} 53. Ra5+ {[%clk 0:00:18]}  Kf6 {[%clk 0:00:18]} 54. Rxa7 {[%clk 0:00:18]}  Rg4+ {[%clk 0:00:18]} 55. Kh2 {[%clk 0:00:17]}  Rh4+ {[%clk 0:00:18]} 56. Kg2 {[%clk 0:00:17]}  Rg4+ {[%clk 0:00:18]} 57. Kf3 {[%clk 0:00:16]}  Rg1 {[%clk 0:00:18]} 58. Ra6+ {[%clk 0:00:16]}  Kg7 {[%clk 0:00:18]} 59. d5 {[%clk 0:00:13]}  h4 {[%clk 0:00:18]} 60. d6 {[%clk 0:00:13]}  h3 {[%clk 0:00:18]} 61. Ra7+ {[%clk 0:00:09]}  Kg6 {[%clk 0:00:19]} 62. Ra8 {[%clk 0:00:04]}  g4+ {[%clk 0:00:18]} 63. Kf4 {[%clk 0:00:04]}  h2 {[%clk 0:00:16]} 64. d7 {[%clk 0:00:03]}  h1=Q {[%clk 0:00:15]} 65. Rg8+ {[%clk 0:00:03]}  Kf7 {[%clk 0:00:15]} 66. d8=Q {[%clk 0:00:04]}  Qh6+ {[%clk 0:00:12]} 67. Rg5 {[%clk 0:00:03]}  Qh2+ {[%clk 0:00:12]} 68. Kf5 {[%clk 0:00:03]}  Qh7+ {[%clk 0:00:11]} 69. Ke5 {[%clk 0:00:03]}  Qh2+ {[%clk 0:00:08]} 70. Ke4 {[%clk 0:00:02]}  Qg2+ {[%clk 0:00:08]} 71. Ke5 {[%clk 0:00:02]}  Qh2+ {[%clk 0:00:09]} 72. Kf5 {[%clk 0:00:03]}  Qxf2+ {[%clk 0:00:09]} 73. Ke4 {[%clk 0:00:03]}  Qf3+ {[%clk 0:00:09]} 74. Ke5 {[%clk 0:00:04]}  Qxe3+ {[%clk 0:00:09]} 75. Kf5 {[%clk 0:00:04]}  Qf3+ {[%clk 0:00:09]} 76. Ke5 {[%clk 0:00:05]}  Re1+ {[%clk 0:00:09]} 77. Kd4 {[%clk 0:00:06]}  Rd1+ {[%clk 0:00:10]} 0-1


[Site "https://www.chess.com"]

[Event "Titled Tuesday Blitz February 28 Late 2023"]
[White "Svane, Frederik"]
[Black "Perez Ponsa, Federico"]
[WhiteFideId "12923044"]
[BlackFideId "117927"]
[WhiteElo "2502"]
[BlackElo "2592"]
[Result "0-1"]
[Round "10"]
[TimeControl "180+2"]
[Date "2023.02.28"]
[WhiteClock "0:00:12"]
[BlackClock "0:00:19"]

1. c4 {[%clk 0:03:00]}  Nf6 {[%clk 0:02:43]} 2. Nc3 {[%clk 0:03:00]}  g6 {[%clk 0:02:44]} 3. g3 {[%clk 0:03:00]}  Bg7 {[%clk 0:02:44]} 4. Bg2 {[%clk 0:03:00]}  O-O {[%clk 0:02:45]} 5. d3 {[%clk 0:03:01]}  d6 {[%clk 0:02:46]} 6. Rb1 {[%clk 0:03:00]}  Nc6 {[%clk 0:02:44]} 7. Nf3 {[%clk 0:02:57]}  a5 {[%clk 0:02:41]} 8. O-O {[%clk 0:02:56]}  e5 {[%clk 0:02:41]} 9. Bd2 {[%clk 0:02:51]}  h6 {[%clk 0:02:38]} 10. a3 {[%clk 0:02:49]}  Be6 {[%clk 0:02:37]} 11. b4 {[%clk 0:02:48]}  axb4 {[%clk 0:02:38]} 12. axb4 {[%clk 0:02:49]}  Qd7 {[%clk 0:02:38]} 13. b5 {[%clk 0:02:48]}  Ne7 {[%clk 0:02:39]} 14. e4 {[%clk 0:02:45]}  Bh3 {[%clk 0:02:38]} 15. Nd5 {[%clk 0:02:40]}  Nexd5 {[%clk 0:02:19]} 16. cxd5 {[%clk 0:02:40]}  Bxg2 {[%clk 0:02:19]} 17. Kxg2 {[%clk 0:02:41]}  c6 {[%clk 0:02:19]} 18. dxc6 {[%clk 0:02:15]}  bxc6 {[%clk 0:02:20]} 19. Qc1 {[%clk 0:02:15]}  cxb5 {[%clk 0:02:07]} 20. Bxh6 {[%clk 0:02:15]}  d5 {[%clk 0:02:05]} 21. Nxe5 {[%clk 0:01:52]}  Qe6 {[%clk 0:02:05]} 22. d4 {[%clk 0:01:50]}  Rfc8 {[%clk 0:01:43]} 23. Qe3 {[%clk 0:01:47]}  Nxe4 {[%clk 0:01:29]} 24. Bxg7 {[%clk 0:01:37]}  Kxg7 {[%clk 0:01:30]} 25. Rxb5 {[%clk 0:01:37]}  Ra2 {[%clk 0:01:30]} 26. Rb7 {[%clk 0:01:35]}  Nd6 {[%clk 0:01:27]} 27. Rd7 {[%clk 0:01:28]}  Nc4 {[%clk 0:01:13]} 28. Nxc4 {[%clk 0:01:18]}  Qxd7 {[%clk 0:01:10]} 29. Nb6 {[%clk 0:01:18]}  Qe8 {[%clk 0:00:46]} 30. Qf3 {[%clk 0:00:53]}  Rd8 {[%clk 0:00:47]} 31. Nxd5 {[%clk 0:00:52]}  Qc6 {[%clk 0:00:47]} 32. Nb4 {[%clk 0:00:42]}  Qxf3+ {[%clk 0:00:40]} 33. Kxf3 {[%clk 0:00:43]}  Rb2 {[%clk 0:00:29]} 34. Nd3 {[%clk 0:00:22]}  Rb3 {[%clk 0:00:26]} 35. Ke3 {[%clk 0:00:22]}  Re8+ {[%clk 0:00:27]} 36. Kd2 {[%clk 0:00:23]}  Ra8 {[%clk 0:00:27]} 37. Rc1 {[%clk 0:00:19]}  Raa3 {[%clk 0:00:27]} 38. Ne5 {[%clk 0:00:16]}  Rb2+ {[%clk 0:00:25]} 39. Rc2 {[%clk 0:00:16]}  Rxc2+ {[%clk 0:00:25]} 40. Kxc2 {[%clk 0:00:17]}  Ra2+ {[%clk 0:00:26]} 41. Kd3 {[%clk 0:00:17]}  Rxf2 {[%clk 0:00:26]} 42. h4 {[%clk 0:00:13]}  Rg2 {[%clk 0:00:26]} 43. g4 {[%clk 0:00:07]}  f6 {[%clk 0:00:23]} 44. Nc6 {[%clk 0:00:07]}  Rxg4 {[%clk 0:00:23]} 45. d5 {[%clk 0:00:08]}  Kf7 {[%clk 0:00:21]} 46. Nd4 {[%clk 0:00:05]}  Rxh4 {[%clk 0:00:20]} 47. Kc4 {[%clk 0:00:06]}  Ke7 {[%clk 0:00:18]} 48. Kc5 {[%clk 0:00:06]}  Rxd4 {[%clk 0:00:16]} 49. Kxd4 {[%clk 0:00:07]}  Kd6 {[%clk 0:00:16]} 50. Ke4 {[%clk 0:00:08]}  f5+ {[%clk 0:00:16]} 51. Kd4 {[%clk 0:00:08]}  g5 {[%clk 0:00:16]} 52. Kc4 {[%clk 0:00:09]}  g4 {[%clk 0:00:16]} 53. Kd4 {[%clk 0:00:10]}  f4 {[%clk 0:00:17]} 54. Ke4 {[%clk 0:00:10]}  f3 {[%clk 0:00:18]} 55. Ke3 {[%clk 0:00:11]}  Kxd5 {[%clk 0:00:18]} 56. Kf2 {[%clk 0:00:12]}  Ke4 {[%clk 0:00:19]} 0-1


[Site "https://www.chess.com"]

[Event "Titled Tuesday Blitz February 28 Late 2023"]
[White "Livaic, Leon"]
[Black "Gokerkan, Cem Kaan"]
[WhiteFideId "14531534"]
[BlackFideId "6336760"]
[WhiteElo "2509"]
[BlackElo "2365"]
[Result "1-0"]
[Round "10"]
[TimeControl "180+2"]
[Date "2023.02.28"]
[WhiteClock "0:00:15"]
[BlackClock "0:00:04"]

1. d4 {[%clk 0:03:00]}  Nf6 {[%clk 0:03:00]} 2. c4 {[%clk 0:03:01]}  e6 {[%clk 0:02:59]} 3. Nf3 {[%clk 0:03:01]}  d5 {[%clk 0:02:59]} 4. Nc3 {[%clk 0:03:00]}  Be7 {[%clk 0:02:59]} 5. g3 {[%clk 0:03:00]}  O-O {[%clk 0:02:58]} 6. Bg2 {[%clk 0:03:01]}  dxc4 {[%clk 0:02:59]} 7. Ne5 {[%clk 0:03:01]}  c5 {[%clk 0:02:57]} 8. dxc5 {[%clk 0:03:01]}  Qxd1+ {[%clk 0:02:56]} 9. Nxd1 {[%clk 0:03:02]}  Bxc5 {[%clk 0:02:57]} 10. Nxc4 {[%clk 0:03:02]}  Nc6 {[%clk 0:02:52]} 11. Be3 {[%clk 0:03:02]}  Bb4+ {[%clk 0:02:50]} 12. Nc3 {[%clk 0:03:02]}  Nd5 {[%clk 0:02:48]} 13. Bd2 {[%clk 0:03:02]}  Nxc3 {[%clk 0:02:45]} 14. bxc3 {[%clk 0:03:02]}  Bc5 {[%clk 0:02:45]} 15. Rb1 {[%clk 0:03:01]}  Rd8 {[%clk 0:02:35]} 16. O-O {[%clk 0:02:59]}  Na5 {[%clk 0:02:25]} 17. Bg5 {[%clk 0:02:47]}  Nxc4 {[%clk 0:01:46]} 18. Bxd8 {[%clk 0:02:47]}  Nd2 {[%clk 0:01:47]} 19. Rfd1 {[%clk 0:02:41]}  Nxb1 {[%clk 0:01:47]} 20. Rxb1 {[%clk 0:02:42]}  Bd7 {[%clk 0:01:17]} 21. Bc7 {[%clk 0:02:37]}  Bc6 {[%clk 0:01:13]} 22. Bxc6 {[%clk 0:02:37]}  bxc6 {[%clk 0:01:13]} 23. Rb7 {[%clk 0:02:37]}  Kf8 {[%clk 0:00:56]} 24. a4 {[%clk 0:02:35]}  Ke8 {[%clk 0:00:54]} 25. e3 {[%clk 0:02:21]}  a6 {[%clk 0:00:47]} 26. Be5 {[%clk 0:02:13]}  f6 {[%clk 0:00:41]} 27. Bd4 {[%clk 0:02:13]}  Be7 {[%clk 0:00:37]} 28. Rc7 {[%clk 0:01:46]}  e5 {[%clk 0:00:35]} 29. Bb6 {[%clk 0:01:46]}  c5 {[%clk 0:00:12]} 30. a5 {[%clk 0:01:33]}  Rb8 {[%clk 0:00:08]} 31. Ra7 {[%clk 0:01:28]}  Rc8 {[%clk 0:00:01]} 32. Rxa6 {[%clk 0:01:26]}  Kd7 {[%clk 0:00:02]} 33. Ra7+ {[%clk 0:01:27]}  Ke6 {[%clk 0:00:03]} 34. Rb7 {[%clk 0:01:25]}  Ra8 {[%clk 0:00:03]} 35. c4 {[%clk 0:01:17]}  h5 {[%clk 0:00:02]} 36. e4 {[%clk 0:01:15]}  g5 {[%clk 0:00:03]} 37. Kg2 {[%clk 0:01:02]}  g4 {[%clk 0:00:03]} 38. h3 {[%clk 0:01:02]}  Bd8 {[%clk 0:00:04]} 39. hxg4 {[%clk 0:00:52]}  hxg4 {[%clk 0:00:05]} 40. Bxd8 {[%clk 0:00:51]}  Rxd8 {[%clk 0:00:06]} 41. a6 {[%clk 0:00:52]}  Rd2 {[%clk 0:00:05]} 42. a7 {[%clk 0:00:49]}  Ra2 {[%clk 0:00:06]} 43. Kf1 {[%clk 0:00:49]}  f5 {[%clk 0:00:02]} 44. exf5+ {[%clk 0:00:45]}  Kxf5 {[%clk 0:00:03]} 45. Ke1 {[%clk 0:00:44]}  Ke4 {[%clk 0:00:04]} 46. Rd7 {[%clk 0:00:42]}  Kf3 {[%clk 0:00:02]} 47. Kd1 {[%clk 0:00:38]}  Ra1+ {[%clk 0:00:01]} 48. Kc2 {[%clk 0:00:38]}  Kxf2 {[%clk 0:00:02]} 49. Kb2 {[%clk 0:00:29]}  Ra6 {[%clk 0:00:02]} 50. Rd2+ {[%clk 0:00:18]}  Kxg3 {[%clk 0:00:02]} 51. Rd3+ {[%clk 0:00:19]}  Kf4 {[%clk 0:00:02]} 52. Ra3 {[%clk 0:00:20]}  Rxa7 {[%clk 0:00:02]} 53. Rxa7 {[%clk 0:00:21]}  g3 {[%clk 0:00:03]} 54. Kc3 {[%clk 0:00:17]}  g2 {[%clk 0:00:03]} 55. Rg7 {[%clk 0:00:14]}  Kf3 {[%clk 0:00:04]} 56. Kd2 {[%clk 0:00:14]}  e4 {[%clk 0:00:02]} 57. Rf7+ {[%clk 0:00:14]}  Kg3 {[%clk 0:00:02]} 58. Ke2 {[%clk 0:00:11]}  g1=Q {[%clk 0:00:01]} 59. Rg7+ {[%clk 0:00:12]}  Kh2 {[%clk 0:00:01]} 60. Rxg1 {[%clk 0:00:12]}  Kxg1 {[%clk 0:00:02]} 61. Ke3 {[%clk 0:00:13]}  Kf1 {[%clk 0:00:03]} 62. Kxe4 {[%clk 0:00:14]}  Ke2 {[%clk 0:00:04]} 63. Kd5 {[%clk 0:00:14]}  Kd3 {[%clk 0:00:04]} 64. Kxc5 {[%clk 0:00:15]} 1-0


[Site "https://www.chess.com"]